[Event "48th Indian U15-ch Girls 2023"]
[Site "Jalgaon"]
[Date "2023.12.27"]
[Round "1.9"]
[White "Yadav Pallavi"]
[Black "Nivedita V C"]
[Result "1/2-1/2"]
[WhiteElo "1191"]
[BlackElo "1638"]
[PlyCount "99"]
[EventDate "2023.12.30"]
[EventType "swiss"]
[EventCountry "IND"]
[TimeControl "5400+30"]

1. e4 {[%emt 0:00:03]} e5 {[%emt 0:00:07]} 2. Nf3 {[%emt 0:00:08]} Nc6 {[%emt 0:00:04]} 3. d4 {[%emt 0:01:41]} exd4 {[%emt 0:00:08]} 4. Bc4 {[%emt 0:00:34]} Nf6 {[%emt 0:01:01]} 5. O-O {[%emt 0:02:13]} d6 {[%emt 0:17:47]} 6. Nxd4 {[%emt 0:18:12]} Ne5 {[%emt 0:02:25]} 7. Bb3 {[%emt 0:03:24]} Be7 {[%emt 0:08:11]} 8. f3 {[%emt 0:03:40]} a6 {[%emt 0:02:36]} 9. a4 {[%emt 0:03:53]} O-O {[%emt 0:02:57]} 10. Nc3 {[%emt 0:01:08]} Bd7 {[%emt 0:04:23]} 11. Be3 {[%emt 0:04:04]} c5 {[%emt 0:04:46]} 12. Nde2 {[%emt 0:01:16]} b5 {[%emt 0:01:51]} 13. axb5 {[%emt 0:22:21]} axb5 {[%emt 0:00:22]} 14. Nd5 {[%emt 0:02:37]} Rxa1 {[%emt 0:05:22]} 15. Qxa1 {[%emt 0:02:40]} c4 {[%emt 0:00:58]} 16. Bb6 {[%emt 0:07:23]} Qe8 {[%emt 0:00:02]} 17. Nxe7+ {[%emt 0:00:50]} Qxe7 {[%emt 0:00:03]} 18. Ba2 {[%emt 0:00:30]} Ra8 {[%emt 0:10:44]} 19. Qb1 {[%emt 0:00:29]} Nc6 {[%emt 0:05:28]} 20. c3 {[%emt 0:04:08]} d5 {[%emt 0:02:08]} 21. Re1 {[%emt 0:10:45]} dxe4 {[%emt 0:08:13]} 22. fxe4 {[%emt 0:03:07]} Qxe4 {[%emt 0:01:19]} 23. Qxe4 {[%emt 0:01:18]} Nxe4 {[%emt 0:00:04]} 24. Bb1 {[%emt 0:00:40]} Ra1 {[%emt 0:03:43]} 25. Rc1 {[%emt 0:02:53]} Bf5 {[%emt 0:05:49]} 26. g4 {[%emt 0:01:29]} Bg6 {[%emt 0:03:29]} 27. Kg2 {[%emt 0:00:53]} h6 {[%emt 0:04:31]} 28. h4 {[%emt 0:00:44]} Ra6 {[%emt 0:03:28]} 29. Bd4 {[%emt 0:00:56]} Nxd4 {[%emt 0:01:22]} 30. Nxd4 {[%emt 0:00:14]} Rb6 {[%emt 0:01:09]} 31. h5 {[%emt 0:00:49]} Bh7 {[%emt 0:00:01]} 32. Re1 {[%emt 0:00:08]} Nf6 {[%emt 0:00:35]} 33. Bxh7+ {[%emt 0:00:31]} Kxh7 {[%emt 0:00:03]} 34. Kf3 {[%emt 0:00:13]} b4 {[%emt 0:00:52]} 35. Re7 {[%emt 0:01:21]} bxc3 {[%emt 0:01:06]} 36. bxc3 {[%emt 0:00:06]} Nd5 {[%emt 0:00:23]} 37. Rxf7 {[%emt 0:00:12]} Nxc3 {[%emt 0:00:11]} 38. Nf5 {[%emt 0:00:57]} Nb5 {[%emt 0:00:46]} 39. Rxg7+ {[%emt 0:00:26]} Kh8 {[%emt 0:00:01]} 40. Re7 {[%emt 0:00:53]} c3 {[%emt 0:00:37]} 41. Re8+ {[%emt 0:00:09]} Kh7 {[%emt 0:00:02]} 42. Re7+ {[%emt 0:00:22]} Kg8 {[%emt 0:00:04]} 43. Re8+ {[%emt 0:00:35]} Kf7 {[%emt 0:00:01]} 44. Rc8 {[%emt 0:00:31]} Ke6 {[%emt 0:01:50]} 45. Rc5 {[%emt 0:00:29]} Kd7 {[%emt 0:00:42]} 46. Ke3 {[%emt 0:00:52]} Nc7 {[%emt 0:00:54]} 47. Kd3 {[%emt 0:00:20]} Ne6 {[%emt 0:00:45]} 48. Rxc3 {[%emt 0:00:17]} Nf4+ {[%emt 0:00:25]} 49. Kc2 {[%emt 0:00:16]} Rf6 {[%emt 0:00:33]} 50. Rf3 {[%emt 0:00:30]} 1/2-1/2

[Event "48th Indian U15-ch Girls 2023"]
[Site "Jalgaon"]
[Date "2023.12.27"]
[Round "1.10"]
[White "Bhat Sannidhi Ramakrishna"]
[Black "Kamble Samruddhi Vishwanath"]
[Result "1-0"]
[WhiteElo "1637"]
[BlackElo "1189"]
[PlyCount "47"]
[EventDate "2023.12.30"]
[EventType "swiss"]
[EventCountry "IND"]
[TimeControl "5400+30"]

1. d4 Nf6 2. Nf3 g6 3. Bg5 Bg7 4. Nbd2 d6 5. c3 Nbd7 6. e4 e6 7. e5 dxe5 8. dxe5 Nxe5 9. Nxe5 Qd5 10. Ndf3 Qe4+ 11. Qe2 Qd5 12. Rd1 Qxa2 13. Qb5+ c6 14. Qb4 Bf8 15. Bxf6 Qb1 16. Qd4 Qxd1+ 17. Kxd1 Be7 18. Bxh8 f6 19. Nc4 e5 20. Nd6+ Kf8 21. Nxe5 Be6 22. Qh4 fxe5 23. Qh6+ Kg8 24. Qg7# {[%emt 0:12:00]} 1-0

[Event "48th Indian U15-ch Girls 2023"]
[Site "Jalgaon"]
[Date "2023.12.28"]
[Round "2.1"]
[White "Mrittika Mallick"]
[Black "Aditi Arun"]
[Result "1-0"]
[WhiteElo "1970"]
[BlackElo "1447"]
[PlyCount "119"]
[EventDate "2023.12.30"]
[EventType "swiss"]
[EventCountry "IND"]
[TimeControl "5400+30"]

1. e4 {[%emt 0:00:43]} e5 {[%emt 0:00:01]} 2. Nf3 {[%emt 0:00:19]} Nc6 {[%emt 0:00:03]} 3. Bc4 {[%emt 0:00:13]} Nf6 {[%emt 0:00:03]} 4. d3 {[%emt 0:00:11]} Be7 {[%emt 0:00:05]} 5. O-O {[%emt 0:00:11]} O-O {[%emt 0:00:30]} 6. Re1 {[%emt 0:00:30]} d6 {[%emt 0:00:30]} 7. a4 {[%emt 0:00:30]} Na5 {[%emt 0:00:30]} 8. Ba2 {[%emt 0:00:30]} c5 {[%emt 0:00:30]} 9. Na3 {[%emt 0:00:30]} h6 {[%emt 0:00:30]} 10. c3 {[%emt 0:00:30]} Nc6 {[%emt 0:00:30]} 11. Nc2 {[%emt 0:00:30]} Re8 {[%emt 0:00:30]} 12. b4 {[%emt 0:00:30]} Bf8 {[%emt 0:00:30]} 13. b5 {[%emt 0:00:30]} Nb8 {[%emt 0:00:30]} 14. Ne3 {[%emt 0:00:30]} g6 {[%emt 0:00:30]} 15. Bb2 {[%emt 0:00:30]} Be6 {[%emt 0:00:30]} 16. Bxe6 {[%emt 0:00:30]} Rxe6 {[%emt 0:14:03]} 17. Qb3 {[%emt 0:29:58]} Nbd7 {[%emt 0:02:56]} 18. Nd2 {[%emt 0:05:20]} Bg7 {[%emt 0:00:30]} 19. a5 {[%emt 0:00:30]} Re8 {[%emt 0:00:30]} 20. a6 {[%emt 0:00:30]} b6 {[%emt 0:00:30]} 21. Rad1 {[%emt 0:43:50]} Nf8 22. d4 {[%emt 0:00:00]} exd4 {[%emt 0:27:24]} 23. cxd4 {[%emt 0:00:00]} cxd4 {[%emt 0:02:21]} 24. Bxd4 {[%emt 0:00:00]} Ne6 {[%emt 0:00:12]} 25. Bxf6 {[%emt 0:05:58]} Qxf6 {[%emt 0:03:06]} 26. Nd5 {[%emt 0:00:00]} Qd8 {[%emt 0:01:26]} 27. Nf3 {[%emt 0:00:00]} Rc8 {[%emt 0:03:05]} 28. Nb4 {[%emt 0:00:00]} Rc3 {[%emt 0:15:05]} 29. Qd5 {[%emt 0:00:00]} Rxf3 {[%emt 0:02:40]} 30. Nc6 {[%emt 0:00:00]} Qh4 {[%emt 0:03:07]} 31. e5 {[%emt 0:00:00]} Qxf2+ {[%emt 0:03:21]} 32. Kh1 {[%emt 0:00:00]} Rf5 {[%emt 0:02:08]} 33. g4 {[%emt 0:00:30]} Rg5 {[%emt 0:01:44]} 34. Rf1 {[%emt 0:00:38]} Qh4 {[%emt 0:03:20]} 35. Qf3 {[%emt 0:00:31]} Qxg4 {[%emt 0:03:47]} 36. Qxg4 {[%emt 0:01:00]} Rxg4 {[%emt 0:00:02]} 37. exd6 {[%emt 0:00:08]} Nd8 {[%emt 0:04:00]} 38. d7 {[%emt 0:01:08]} Rf8 {[%emt 0:03:02]} 39. Rde1 {[%emt 0:01:12]} f5 {[%emt 0:03:41]} 40. Nxd8 {[%emt 0:01:59]} Bf6 {[%emt 0:00:14]} 41. Ne6 {[%emt 0:00:17]} Rb8 {[%emt 0:02:04]} 42. Rc1 {[%emt 0:00:58]} Kf7 {[%emt 0:00:35]} 43. Rc8 {[%emt 0:00:40]} Kxe6 {[%emt 0:00:13]} 44. Rxb8 {[%emt 0:00:41]} Kxd7 {[%emt 0:00:02]} 45. Rb7+ {[%emt 0:00:17]} Kd6 {[%emt 0:00:25]} 46. Rxa7 {[%emt 0:00:08]} Ra4 {[%emt 0:00:09]} 47. Ra8 {[%emt 0:02:49]} Ke7 {[%emt 0:01:07]} 48. Re1+ {[%emt 0:00:59]} Kf7 {[%emt 0:00:03]} 49. Ra7+ {[%emt 0:00:06]} Kf8 {[%emt 0:00:07]} 50. Rc1 {[%emt 0:00:13]} Bd8 {[%emt 0:01:17]} 51. Rc8 {[%emt 0:00:23]} Ra1+ {[%emt 0:00:09]} 52. Kg2 {[%emt 0:00:06]} Ra2+ {[%emt 0:00:03]} 53. Kf3 {[%emt 0:00:10]} Ra3+ {[%emt 0:00:02]} 54. Kf4 {[%emt 0:00:26]} Ra4+ {[%emt 0:00:19]} 55. Ke5 {[%emt 0:00:13]} Re4+ {[%emt 0:00:20]} 56. Kd5 {[%emt 0:00:05]} Re8 {[%emt 0:00:56]} 57. Raa8 {[%emt 0:00:07]} Ke7 {[%emt 0:00:12]} 58. Rxd8 {[%emt 0:00:08]} Rxd8+ {[%emt 0:00:04]} 59. Rxd8 {[%emt 0:00:07]} Kxd8 {[%emt 0:00:02]} 60. a7 {[%emt 0:00:08]} 1-0

[Event "48th Indian U15-ch Girls 2023"]
[Site "Jalgaon"]
[Date "2023.12.28"]
[Round "2.2"]
[White "Arya G Mallar"]
[Black "Shubhi Gupta"]
[Result "0-1"]
[WhiteElo "1460"]
[BlackElo "1902"]
[PlyCount "68"]
[EventDate "2023.12.30"]
[EventType "swiss"]
[EventCountry "IND"]
[TimeControl "5400+30"]

1. d4 {[%emt 0:00:08]} d5 {[%emt 0:01:46]} 2. Nf3 {[%emt 0:00:10]} Nf6 {[%emt 0:00:26]} 3. Bf4 {[%emt 0:00:14]} c5 {[%emt 0:00:52]} 4. e3 {[%emt 0:00:16]} Nc6 {[%emt 0:00:54]} 5. Nbd2 {[%emt 0:00:10]} Bf5 {[%emt 0:02:39]} 6. dxc5 {[%emt 0:00:21]} e6 {[%emt 0:00:43]} 7. Nd4 {[%emt 0:00:31]} Bxc5 {[%emt 0:03:59]} 8. Nxf5 {[%emt 0:00:14]} exf5 {[%emt 0:00:13]} 9. c3 {[%emt 0:00:31]} O-O {[%emt 0:03:01]} 10. Be2 {[%emt 0:00:21]} Ne4 {[%emt 0:02:57]} 11. Nxe4 {[%emt 0:00:25]} fxe4 {[%emt 0:01:35]} 12. Qb3 {[%emt 0:00:59]} Qd7 {[%emt 0:01:52]} 13. Rd1 {[%emt 0:00:14]} Rad8 {[%emt 0:00:40]} 14. O-O {[%emt 0:01:45]} Kh8 {[%emt 0:03:08]} 15. Rd2 {[%emt 0:01:49]} Ne7 {[%emt 0:07:04]} 16. Rfd1 {[%emt 0:02:37]} Bb6 {[%emt 0:08:37]} 17. Bg5 {[%emt 0:11:04]} f6 {[%emt 0:02:16]} 18. Bf4 {[%emt 0:00:24]} Qf5 {[%emt 0:02:26]} 19. h3 {[%emt 0:01:46]} h5 {[%emt 0:05:29]} 20. Qb5 {[%emt 0:21:53]} Rg8 {[%emt 0:02:50]} 21. c4 {[%emt 0:06:01]} g5 {[%emt 0:02:32]} 22. Bh2 {[%emt 0:02:06]} g4 {[%emt 0:00:48]} 23. c5 {[%emt 0:07:10]} gxh3 {[%emt 0:02:10]} 24. Bg3 {[%emt 0:07:05]} h4 {[%emt 0:02:42]} 25. cxb6 {[%emt 0:02:03]} hxg3 {[%emt 0:00:15]} 26. f4 {[%emt 0:02:42]} Qh7 {[%emt 0:01:20]} 27. gxh3 {[%emt 0:01:02]} Qxh3 {[%emt 0:00:14]} 28. Bf1 {[%emt 0:00:10]} g2 {[%emt 0:00:32]} 29. Rxg2 {[%emt 0:04:22]} Rxg2+ {[%emt 0:01:37]} 30. Bxg2 {[%emt 0:00:03]} Qxe3+ {[%emt 0:00:08]} 31. Kh1 {[%emt 0:00:28]} Kg7 {[%emt 0:00:14]} 32. Bf1 {[%emt 0:02:05]} Rh8+ {[%emt 0:00:14]} 33. Kg2 {[%emt 0:00:11]} Qf3+ {[%emt 0:00:03]} 34. Kg1 {[%emt 0:00:06]} Rh1# {[%emt 0:00:06]} 0-1

[Event "48th Indian U15-ch Girls 2023"]
[Site "Jalgaon"]
[Date "2023.12.28"]
[Round "2.3"]
[White "Sachi Jain"]
[Black "Samhita Pungavanam"]
[Result "1-0"]
[WhiteElo "1844"]
[BlackElo "1437"]
[PlyCount "75"]
[EventDate "2023.12.30"]
[EventType "swiss"]
[EventCountry "IND"]
[TimeControl "5400+30"]

1. e4 {[%emt 0:00:36]} c5 {[%emt 0:00:46]} 2. Nf3 {[%emt 0:00:16]} d6 {[%emt 0:01:23]} 3. d4 {[%emt 0:00:14]} cxd4 {[%emt 0:01:12]} 4. Nxd4 {[%emt 0:00:14]} Nf6 {[%emt 0:00:22]} 5. Nc3 {[%emt 0:00:15]} g6 {[%emt 0:01:03]} 6. f4 {[%emt 0:00:22]} Nc6 {[%emt 0:02:18]} 7. Nf3 {[%emt 0:00:32]} Bg7 {[%emt 0:02:30]} 8. Bd3 {[%emt 0:00:49]} O-O {[%emt 0:00:50]} 9. O-O {[%emt 0:01:28]} b5 {[%emt 0:00:50]} 10. Kh1 {[%emt 0:04:27]} b4 {[%emt 0:11:07]} 11. Nd5 {[%emt 0:00:19]} a5 {[%emt 0:07:39]} 12. Qe1 {[%emt 0:06:10]} e6 {[%emt 0:12:12]} 13. Ne3 {[%emt 0:04:56]} Re8 {[%emt 0:06:34]} 14. e5 {[%emt 0:07:24]} Nd5 {[%emt 0:10:27]} 15. Bb5 {[%emt 0:14:10]} Bb7 {[%emt 0:07:17]} 16. Nc4 {[%emt 0:00:53]} dxe5 {[%emt 0:09:00]} 17. fxe5 {[%emt 0:01:06]} Qc7 {[%emt 0:09:31]} 18. Nd6 {[%emt 0:08:15]} Rf8 {[%emt 0:06:34]} 19. Bxc6 {[%emt 0:05:56]} Qxc6 {[%emt 0:01:28]} 20. Qh4 {[%emt 0:06:46]} Bxe5 {[%emt 0:04:06]} 21. Nxe5 {[%emt 0:14:45]} Qxd6 {[%emt 0:00:26]} 22. Rxf7 {[%emt 0:02:25]} Rxf7 {[%emt 0:01:53]} 23. Nxf7 {[%emt 0:00:02]} Qe7 {[%emt 0:00:20]} 24. Nh6+ {[%emt 0:01:00]} Kg7 {[%emt 0:00:41]} 25. Bg5 {[%emt 0:00:11]} Qc5 {[%emt 0:00:48]} 26. Qe4 {[%emt 0:09:44]} Qd6 {[%emt 0:01:23]} 27. Rf1 {[%emt 0:00:12]} Rf8 {[%emt 0:00:34]} 28. Rxf8 {[%emt 0:00:13]} Kxf8 {[%emt 0:00:41]} 29. Qf3+ {[%emt 0:00:01]} Nf4 {[%emt 0:00:04]} 30. Qxf4+ {[%emt 0:01:07]} Qxf4 {[%emt 0:00:02]} 31. Bxf4 {[%emt 0:00:02]} Be4 {[%emt 0:01:07]} 32. c3 {[%emt 0:00:45]} bxc3 {[%emt 0:00:37]} 33. bxc3 {[%emt 0:00:01]} a4 {[%emt 0:00:02]} 34. Ng4 {[%emt 0:00:08]} Bd5 {[%emt 0:01:07]} 35. a3 {[%emt 0:00:02]} Kf7 {[%emt 0:00:03]} 36. c4 {[%emt 0:00:26]} Bb7 {[%emt 0:00:49]} 37. c5 {[%emt 0:00:07]} Ke7 {[%emt 0:00:24]} 38. Bd6+ {[%emt 0:00:05]} 1-0

[Event "48th Indian U15-ch Girls 2023"]
[Site "Jalgaon"]
[Date "2023.12.28"]
[Round "2.4"]
[White "Yashvi Jain"]
[Black "Sneha Halder"]
[Result "0-1"]
[WhiteElo "1442"]
[BlackElo "1766"]
[PlyCount "80"]
[EventDate "2023.12.30"]
[EventType "swiss"]
[EventCountry "IND"]
[TimeControl "5400+30"]

1. d4 {[%emt 0:00:30]} c5 {[%emt 0:00:36]} 2. c3 {[%emt 0:00:21]} Nf6 {[%emt 0:00:21]} 3. Bf4 {[%emt 0:00:34]} Qb6 {[%emt 0:02:42]} 4. Qc1 {[%emt 0:02:13]} cxd4 {[%emt 0:11:53]} 5. cxd4 {[%emt 0:00:13]} Nc6 {[%emt 0:00:02]} 6. e3 {[%emt 0:00:51]} d6 {[%emt 0:01:43]} 7. Nc3 {[%emt 0:01:51]} Bf5 {[%emt 0:00:09]} 8. Bb5 {[%emt 0:00:55]} Rc8 {[%emt 0:05:32]} 9. Nf3 {[%emt 0:01:30]} Nd5 {[%emt 0:02:37]} 10. Nxd5 {[%emt 0:04:27]} Qxb5 {[%emt 0:00:02]} 11. Nc3 {[%emt 0:00:57]} Qa6 {[%emt 0:00:13]} 12. a3 {[%emt 0:00:28]} h6 {[%emt 0:04:28]} 13. e4 {[%emt 0:04:19]} Bg4 {[%emt 0:00:54]} 14. Be3 {[%emt 0:01:18]} Bxf3 {[%emt 0:02:15]} 15. gxf3 {[%emt 0:00:02]} Na5 {[%emt 0:00:09]} 16. Qd1 {[%emt 0:00:34]} Nc4 {[%emt 0:01:11]} 17. Qe2 {[%emt 0:03:24]} Qb6 {[%emt 0:05:47]} 18. Rb1 {[%emt 0:08:04]} Qa5 {[%emt 0:00:59]} 19. Bd2 {[%emt 0:01:21]} Qh5 {[%emt 0:01:00]} 20. Nd5 {[%emt 0:10:25]} e6 {[%emt 0:02:46]} 21. Nc3 {[%emt 0:01:46]} Be7 {[%emt 0:01:32]} 22. f4 {[%emt 0:03:42]} Qh3 {[%emt 0:05:54]} 23. Be3 {[%emt 0:06:33]} Bh4 {[%emt 0:02:05]} 24. Nd1 {[%emt 0:01:28]} Qg2 {[%emt 0:00:58]} 25. Rf1 {[%emt 0:01:29]} Qxe4 {[%emt 0:00:13]} 26. Rc1 {[%emt 0:01:24]} Qd5 {[%emt 0:00:47]} 27. Nc3 {[%emt 0:02:12]} Qa5 {[%emt 0:05:29]} 28. d5 {[%emt 0:12:36]} O-O {[%emt 0:05:46]} 29. Rg1 {[%emt 0:02:25]} Nxe3 {[%emt 0:06:24]} 30. Qxe3 {[%emt 0:00:23]} Bf6 {[%emt 0:00:17]} 31. dxe6 {[%emt 0:05:04]} Rfe8 {[%emt 0:00:08]} 32. Kd1 {[%emt 0:01:42]} Rxe6 {[%emt 0:00:16]} 33. Qh3 {[%emt 0:00:15]} Bxc3 {[%emt 0:01:55]} 34. Rxc3 {[%emt 0:01:44]} Rxc3 {[%emt 0:00:58]} 35. bxc3 {[%emt 0:01:39]} Qa4+ {[%emt 0:00:24]} 36. Kd2 {[%emt 0:00:48]} Qxf4+ {[%emt 0:00:11]} 37. Kd1 {[%emt 0:00:06]} Qxf2 {[%emt 0:00:24]} 38. Qg4 {[%emt 0:00:41]} Qf6 {[%emt 0:00:48]} 39. Qg3 {[%emt 0:00:21]} Re5 {[%emt 0:00:52]} 40. Qg2 {[%emt 0:00:23]} Rg5 {[%emt 0:00:15]} 0-1

[Event "48th Indian U15-ch Girls 2023"]
[Site "Jalgaon"]
[Date "2023.12.28"]
[Round "2.5"]
[White "Arshiya Das"]
[Black "Suravi Bhattacharya"]
[Result "1-0"]
[WhiteElo "1729"]
[BlackElo "1420"]
[PlyCount "121"]
[EventDate "2023.12.30"]
[EventType "swiss"]
[EventCountry "IND"]
[TimeControl "5400+30"]

1. Nf3 {[%emt 0:00:04]} d5 {[%emt 0:00:49]} 2. g3 {[%emt 0:00:06]} Nf6 {[%emt 0:00:05]} 3. Bg2 {[%emt 0:00:04]} c5 {[%emt 0:00:13]} 4. d3 {[%emt 0:00:17]} Nc6 {[%emt 0:00:37]} 5. Nbd2 {[%emt 0:00:18]} e5 {[%emt 0:00:32]} 6. e4 {[%emt 0:01:51]} d4 {[%emt 0:00:59]} 7. O-O {[%emt 0:02:34]} Be7 {[%emt 0:01:22]} 8. a4 {[%emt 0:04:05]} O-O {[%emt 0:03:36]} 9. h3 {[%emt 0:02:51]} a6 {[%emt 0:02:12]} 10. Re1 {[%emt 0:01:36]} Rb8 {[%emt 0:00:57]} 11. Nf1 {[%emt 0:02:09]} b5 {[%emt 0:03:05]} 12. g4 {[%emt 0:02:36]} c4 {[%emt 0:03:46]} 13. axb5 {[%emt 0:04:06]} axb5 {[%emt 0:00:17]} 14. Ng3 {[%emt 0:00:34]} Re8 {[%emt 0:05:58]} 15. Bf1 {[%emt 0:04:13]} cxd3 {[%emt 0:07:44]} 16. Bxd3 {[%emt 0:04:51]} Qc7 {[%emt 0:05:00]} 17. Qe2 {[%emt 0:01:58]} Qb6 {[%emt 0:03:58]} 18. Kg2 {[%emt 0:00:58]} Nd7 {[%emt 0:03:14]} 19. Nf5 {[%emt 0:13:10]} Bf8 {[%emt 0:00:22]} 20. Bd2 {[%emt 0:09:38]} Nc5 {[%emt 0:04:00]} 21. N3h4 {[%emt 0:05:29]} Be6 {[%emt 0:11:58]} 22. Ng3 {[%emt 0:04:11]} Red8 {[%emt 0:07:07]} 23. Nhf5 {[%emt 0:02:25]} b4 {[%emt 0:03:46]} 24. b3 {[%emt 0:05:53]} Rbc8 {[%emt 0:01:41]} 25. Nh5 {[%emt 0:03:17]} Kh8 {[%emt 0:04:12]} 26. Nhg3 {[%emt 0:03:36]} Rc7 {[%emt 0:03:12]} 27. Ra2 {[%emt 0:01:24]} Na5 {[%emt 0:04:46]} 28. Rea1 {[%emt 0:01:19]} Ra8 {[%emt 0:00:00]} 29. f4 {[%emt 0:02:23]} g6 {[%emt 0:05:09]} 30. Nh4 {[%emt 0:00:24]} Rca7 {[%emt 0:00:44]} 31. fxe5 {[%emt 0:01:22]} Nc6 {[%emt 0:00:26]} 32. Rxa7 {[%emt 0:01:03]} Rxa7 {[%emt 0:00:00]} 33. Rxa7 {[%emt 0:00:02]} Qxa7 {[%emt 0:00:49]} 34. Nf3 {[%emt 0:00:19]} Qb8 {[%emt 0:01:27]} 35. Bb5 {[%emt 0:01:33]} Na7 {[%emt 0:01:09]} 36. Nxd4 {[%emt 0:00:43]} Qxe5 {[%emt 0:01:15]} 37. Nf3 {[%emt 0:00:15]} Qb8 {[%emt 0:00:55]} 38. Bc4 {[%emt 0:01:08]} Nc6 {[%emt 0:02:03]} 39. Be3 {[%emt 0:01:20]} Nd8 {[%emt 0:04:54]} 40. Bd4+ {[%emt 0:02:15]} Kg8 {[%emt 0:00:19]} 41. Qe3 {[%emt 0:00:23]} Bxc4 {[%emt 0:01:33]} 42. Bxc5 {[%emt 0:01:08]} Bxc5 {[%emt 0:00:51]} 43. Qxc5 {[%emt 0:00:05]} Be6 {[%emt 0:00:09]} 44. e5 {[%emt 0:01:12]} Qc8 {[%emt 0:01:17]} 45. Qxc8 {[%emt 0:01:35]} Bxc8 {[%emt 0:00:04]} 46. Nd4 {[%emt 0:00:08]} Kf8 {[%emt 0:00:13]} 47. Kf2 {[%emt 0:00:14]} Ke7 {[%emt 0:00:32]} 48. Ke3 {[%emt 0:01:20]} Bb7 {[%emt 0:00:35]} 49. g5 {[%emt 0:01:15]} Bg2 {[%emt 0:01:34]} 50. h4 {[%emt 0:00:09]} Nb7 {[%emt 0:00:09]} 51. Nge2 {[%emt 0:01:05]} Nc5 {[%emt 0:00:35]} 52. Nf4 {[%emt 0:00:52]} Bb7 {[%emt 0:00:25]} 53. Nd3 {[%emt 0:00:42]} Nxd3 {[%emt 0:00:42]} 54. cxd3 {[%emt 0:00:36]} Bd5 {[%emt 0:00:05]} 55. Nc2 {[%emt 0:00:04]} Bxb3 {[%emt 0:00:18]} 56. Nxb4 {[%emt 0:00:03]} Ba4 {[%emt 0:00:20]} 57. Ke4 {[%emt 0:00:29]} Bd7 {[%emt 0:00:18]} 58. Nd5+ {[%emt 0:00:35]} Ke6 {[%emt 0:00:48]} 59. Nf6 {[%emt 0:00:10]} Bc6+ {[%emt 0:00:04]} 60. Kf4 {[%emt 0:00:03]} Bb5 {[%emt 0:00:16]} 61. d4 {[%emt 0:00:04]} 1-0

[Event "48th Indian U15-ch Girls 2023"]
[Site "Jalgaon"]
[Date "2023.12.28"]
[Round "2.6"]
[White "Hanya Shah"]
[Black "Rajanya Datta"]
[Result "0-1"]
[WhiteElo "1429"]
[BlackElo "1688"]
[PlyCount "86"]
[EventDate "2023.12.30"]
[EventType "swiss"]
[EventCountry "IND"]
[TimeControl "5400+30"]

1. c4 {[%emt 0:00:30]} e6 {[%emt 0:00:24]} 2. Nc3 {[%emt 0:00:10]} d5 {[%emt 0:00:07]} 3. e3 {[%emt 0:00:08]} c6 {[%emt 0:00:06]} 4. Nf3 {[%emt 0:00:09]} Nf6 {[%emt 0:01:44]} 5. Qc2 {[%emt 0:00:20]} Be7 {[%emt 0:00:07]} 6. d4 {[%emt 0:00:22]} O-O {[%emt 0:00:29]} 7. Bd3 {[%emt 0:01:25]} Nbd7 {[%emt 0:03:41]} 8. O-O {[%emt 0:00:51]} b6 {[%emt 0:01:03]} 9. e4 {[%emt 0:03:48]} dxe4 {[%emt 0:01:50]} 10. Nxe4 {[%emt 0:01:09]} Bb7 {[%emt 0:03:31]} 11. Rd1 {[%emt 0:03:48]} Qc7 {[%emt 0:06:07]} 12. b3 {[%emt 0:14:13]} Nxe4 {[%emt 0:02:39]} 13. Bxe4 {[%emt 0:01:48]} Nf6 {[%emt 0:00:12]} 14. Bb2 {[%emt 0:04:52]} h6 {[%emt 0:09:02]} 15. Rac1 {[%emt 0:02:28]} Qf4 {[%emt 0:04:37]} 16. Bd3 {[%emt 0:02:38]} Rfd8 {[%emt 0:04:54]} 17. Be2 {[%emt 0:06:42]} Qc7 {[%emt 0:06:34]} 18. h3 {[%emt 0:05:04]} Bd6 {[%emt 0:09:43]} 19. d5 {[%emt 0:07:05]} cxd5 {[%emt 0:06:27]} 20. Bxf6 {[%emt 0:04:52]} gxf6 {[%emt 0:00:08]} 21. Qb2 {[%emt 0:00:19]} Be5 {[%emt 0:00:37]} 22. Nxe5 {[%emt 0:01:54]} Qxe5 {[%emt 0:00:06]} 23. Qd2 {[%emt 0:00:42]} dxc4 {[%emt 0:02:15]} 24. Qxd8+ {[%emt 0:03:13]} Rxd8 {[%emt 0:00:28]} 25. Rxd8+ {[%emt 0:00:32]} Kg7 {[%emt 0:00:04]} 26. Bf1 {[%emt 0:00:38]} cxb3 {[%emt 0:05:31]} 27. axb3 {[%emt 0:00:02]} Qb2 {[%emt 0:02:26]} 28. Rc7 {[%emt 0:02:02]} Be4 {[%emt 0:00:15]} 29. Rdd7 {[%emt 0:02:02]} Bg6 {[%emt 0:00:06]} 30. Rxa7 {[%emt 0:03:39]} Qxb3 {[%emt 0:00:59]} 31. Rab7 {[%emt 0:00:23]} Qb4 {[%emt 0:00:06]} 32. Rdc7 {[%emt 0:02:49]} Qb1 {[%emt 0:07:27]} 33. Rd7 {[%emt 0:00:16]} Qb4 {[%emt 0:00:17]} 34. Rdc7 {[%emt 0:00:09]} Qe1 {[%emt 0:07:38]} 35. Rd7 {[%emt 0:00:29]} Be4 {[%emt 0:03:16]} 36. Rxf7+ {[%emt 0:04:38]} Kg6 {[%emt 0:00:07]} 37. Rbd7 {[%emt 0:03:10]} Bd5 {[%emt 0:00:43]} 38. g4 {[%emt 0:03:11]} Kg5 {[%emt 0:00:11]} 39. Rc7 {[%emt 0:01:45]} Qe4 {[%emt 0:00:46]} 40. Kh2 {[%emt 0:00:56]} Qh1+ {[%emt 0:00:06]} 41. Kg3 {[%emt 0:00:13]} Qf3+ {[%emt 0:00:03]} 42. Kh2 {[%emt 0:00:13]} Qxf2+ {[%emt 0:00:05]} 43. Bg2 {[%emt 0:00:25]} Qxg2# {[%emt 0:00:03]} 0-1

[Event "48th Indian U15-ch Girls 2023"]
[Site "Jalgaon"]
[Date "2023.12.28"]
[Round "2.7"]
[White "Saparya Ghosh"]
[Black "Dhakshniga T"]
[Result "1-0"]
[WhiteElo "1662"]
[BlackElo "1416"]
[PlyCount "63"]
[EventDate "2023.12.30"]
[EventType "swiss"]
[EventCountry "IND"]
[TimeControl "5400+30"]

1. d4 {[%emt 0:00:27]} Nf6 {[%emt 0:00:46]} 2. c4 {[%emt 0:00:06]} g6 {[%emt 0:00:38]} 3. g3 {[%emt 0:00:06]} d5 {[%emt 0:02:16]} 4. cxd5 {[%emt 0:00:40]} Nxd5 {[%emt 0:03:58]} 5. e4 {[%emt 0:00:47]} Nb6 {[%emt 0:00:52]} 6. Bg2 {[%emt 0:00:16]} Bg7 {[%emt 0:00:55]} 7. Ne2 {[%emt 0:00:08]} Nc6 {[%emt 0:03:47]} 8. d5 {[%emt 0:03:23]} Ne5 {[%emt 0:00:58]} 9. O-O {[%emt 0:02:53]} e6 {[%emt 0:09:00]} 10. Nbc3 {[%emt 0:12:36]} exd5 {[%emt 0:03:24]} 11. exd5 {[%emt 0:00:26]} O-O {[%emt 0:03:41]} 12. Bf4 {[%emt 0:00:45]} Bf5 {[%emt 0:10:23]} 13. Nd4 {[%emt 0:04:33]} Qd7 {[%emt 0:03:50]} 14. Nxf5 {[%emt 0:01:11]} Qxf5 {[%emt 0:00:29]} 15. Nb5 {[%emt 0:03:28]} Qd7 {[%emt 0:16:01]} 16. Qb3 {[%emt 0:01:04]} a6 {[%emt 0:02:00]} 17. Nc3 {[%emt 0:01:43]} Nbc4 {[%emt 0:07:52]} 18. Rfe1 {[%emt 0:06:07]} Rfe8 {[%emt 0:02:51]} 19. Ne4 {[%emt 0:04:07]} b6 {[%emt 0:04:24]} 20. Rac1 {[%emt 0:00:46]} Nxb2 {[%emt 0:07:29]} 21. Re3 {[%emt 0:06:55]} Rac8 {[%emt 0:03:15]} 22. Rec3 {[%emt 0:13:21]} Na4 {[%emt 0:02:54]} 23. R3c2 {[%emt 0:01:31]} b5 {[%emt 0:02:29]} 24. Ng5 {[%emt 0:10:58]} Nc4 {[%emt 0:03:06]} 25. Bh3 {[%emt 0:00:25]} Qxd5 {[%emt 0:00:47]} 26. Rxc4 {[%emt 0:02:32]} bxc4 {[%emt 0:00:54]} 27. Qxa4 {[%emt 0:00:09]} Rb8 {[%emt 0:03:37]} 28. Bf1 {[%emt 0:03:05]} Qf5 {[%emt 0:01:13]} 29. Bxc4 {[%emt 0:00:17]} Rf8 {[%emt 0:00:05]} 30. Bb3 {[%emt 0:02:28]} h6 {[%emt 0:00:40]} 31. Nxf7 {[%emt 0:06:21]} Rxf7 {[%emt 0:00:41]} 32. Rxc7 {[%emt 0:00:51]} 1-0